fUST/lending_fUST_20250910
["ID","MTS","AMOUNT","RATE_DAILY","PERIOD"]
[384496947,1757445039061,-480.0,0.00013698,2]
[384496948,1757445039070,-1786.28,0.00013698,2]
[384496949,1757445039079,-480.0,0.00013698,2]
[384496950,1757445039088,-480.0,0.00013698,2]
[384496951,1757445039098,-480.0,0.00013698,2]
[384496952,1757445039108,-480.0,0.00013698,2]
[384496954,1757445039118,-480.0,0.00013698,2]
[384496956,1757445039128,-480.0,0.00013698,2]
[384496958,1757445039137,-480.0,0.00013698,2]
[384496960,1757445039146,-480.0,0.00013698,2]
[384496962,1757445039158,-480.0,0.00013698,2]
[384496963,1757445039167,-575.34,0.00013698,2]
[384496964,1757445039176,-480.0,0.00013698,2]
[384496965,1757445039186,-525.03,0.00013698,2]
[384496966,1757445039197,-595.48,0.00013698,2]
[384496967,1757445039210,-480.0,0.00013698,2]
[384496968,1757445039219,-480.0,0.00013698,2]
[384496969,1757445039229,-480.0,0.00013698,2]
[384496970,1757445039238,-480.0,0.00013698,2]
[384496971,1757445039249,-480.0,0.00013698,2]
[384496972,1757445039259,-887.0,0.00013698,2]
[384496973,1757445039269,-480.0,0.00013698,2]
[384496974,1757445039280,-480.0,0.00013698,2]
[384496975,1757445039289,-480.0,0.00013698,2]
[384496976,1757445039299,-4442.44,0.00013698,2]
[384496977,1757445039308,-1125.33,0.00013698,2]
[384496978,1757445039317,-480.0,0.00013698,2]
[384496979,1757445039326,-999.77,0.00013698,2]
[384496980,1757445039336,-526.55,0.00013698,2]
[384496981,1757445039346,-480.0,0.00013698,2]
[384496982,1757445039355,-480.0,0.00013698,2]
[384496983,1757445039364,-822.58,0.00013698,2]
[384496984,1757445039374,-716.82,0.00013698,2]
[384496985,1757445039384,-1435.07,0.00013698,2]
[384496986,1757445039393,-480.0,0.00013698,2]
[384496987,1757445039403,-480.0,0.00013698,2]
[384496988,1757445039412,-501.71,0.00013698,2]
[384496989,1757445039421,-480.0,0.00013698,2]
[384496990,1757445039430,-769.65,0.00013698,2]
[384496991,1757445039440,-480.0,0.00013698,2]
[384496992,1757445039451,-480.0,0.00013698,2]
[384496993,1757445039460,-3466.96,0.00013698,2]
[384496994,1757445039469,-1757.78,0.00013698,2]
[384496995,1757445039479,-480.0,0.00013698,2]
[384496996,1757445039488,-480.0,0.00013698,2]
[384496997,1757445039499,-480.0,0.00013698,2]
[384496998,1757445039508,-425.45,0.00013698,2]
[384496999,1757445039517,-480.0,0.00013698,2]
[384497000,1757445039527,-480.0,0.00013698,2]
[384497002,1757445039537,-480.0,0.00013698,2]
[384497004,1757445039547,-480.0,0.00013698,2]
[384497006,1757445039557,-480.0,0.00013698,2]
[384497007,1757445039566,-753.95,0.00013698,2]
[384497009,1757445039576,-606.59,0.00013698,2]
[384497011,1757445039586,-422.34394638,0.00013698,2]
[384497013,1757445039595,-730.46,0.00013698,2]
[384497015,1757445039605,-480.0,0.00013698,2]
[384497017,1757445039614,-480.0,0.00013698,2]
[384497019,1757445039623,-2975.42,0.00013698,2]
[384497021,1757445039633,-25931.99,0.00013698,2]
[384497023,1757445039642,-783.94,0.00013698,2]
[384497025,1757445039651,-718.37,0.00013698,2]
[384497027,1757445039661,-2636.56,0.00013698,2]
[384497029,1757445039670,-2939.26,0.00013698,2]
[384497031,1757445039680,-1108.26,0.00013698,2]
[384497032,1757445039690,-1242.42,0.00013698,2]
[384497033,1757445039699,-502.96,0.00013698,2]
[384497034,1757445039708,-480.0,0.00013698,2]
[384497035,1757445039718,-671.47,0.00013698,2]
[384497037,1757445039727,-480.0,0.00013698,2]
[384497039,1757445039737,-480.0,0.00013698,2]
[384497041,1757445039746,-613.22550833,0.00013698,2]
[384497043,1757445039757,-566.11,0.00013698,2]
[384497045,1757445039767,-2112.24,0.00013698,2]
[384497047,1757445039776,-878.28,0.00013698,2]
[384497049,1757445039785,-463.56267798,0.00013698,2]
[384497051,1757445039795,-480.0,0.00013698,2]
[384497052,1757445039804,-1959.85,0.00013698,2]
[384497054,1757445039813,-480.0,0.00013698,2]
[384497056,1757445039823,-480.0,0.00013698,2]
[384497058,1757445039832,-790.79,0.00013698,2]
[384497060,1757445039842,-1323.65,0.00013698,2]
[384497061,1757445039852,-641.97,0.00013698,2]
[384497063,1757445039862,-809.7,0.00013698,2]
[384497065,1757445039872,-1085.91,0.00013698,2]
[384497067,1757445039881,-519.61,0.00013698,2]
[384497069,1757445039891,-483.14,0.00013698,2]
[384497071,1757445039901,-588.37967596,0.00013698,2]
[384497073,1757445039910,-557.92,0.00013698,2]
[384497074,1757445039919,-1159.74,0.00013698,2]
[384497076,1757445039928,-480.0,0.00013698,2]
[384497078,1757445039938,-480.0,0.00013698,2]
[384497080,1757445039948,-480.0,0.00013698,2]
[384497082,1757445039957,-270.1528894,0.00013698,2]
[384497084,1757445039967,-480.0,0.00013698,2]
[384497086,1757445039976,-2950.96,0.00013698,2]
[384497088,1757445039987,-480.0,0.00013698,2]
[384497090,1757445039997,-2075.52,0.00013698,2]
[384497092,1757445040007,-480.0,0.00013698,2]
[384497094,1757445040017,-480.0,0.00013698,2]
[384497096,1757445040026,-480.0,0.00013698,2]
[384497098,1757445040035,-979.21,0.00013698,2]
[384497100,1757445040044,-480.0,0.00013698,2]
[384497102,1757445040053,-817.83,0.00013698,2]
[384497104,1757445040062,-480.0,0.00013698,2]
[384497106,1757445040071,-480.0,0.00013698,2]
[384497107,1757445040080,-726.16,0.00013698,2]
[384497109,1757445040089,-587.07,0.00013698,2]
[384497110,1757445040098,-480.0,0.00013698,2]
[384497111,1757445040108,-480.0,0.00013698,2]
[384497112,1757445040118,-480.0,0.00013698,2]
[384497113,1757445040128,-480.0,0.00013698,2]
[384497114,1757445040137,-854.32,0.00013698,2]
[384497115,1757445040147,-661.4,0.00013698,2]
[384497116,1757445040156,-549.31,0.00013698,2]
[384497117,1757445040166,-480.0,0.00013698,2]
[384497118,1757445040175,-480.0,0.00013698,2]
[384497119,1757445040184,-9324.01,0.00013698,2]
[384497120,1757445040193,-1623.49,0.00013698,2]
[384497121,1757445040203,-345.92502996,0.00013698,2]
[384497122,1757445040212,-480.0,0.00013698,2]
[384497123,1757445040222,-5161.25,0.00013698,2]
[384497124,1757445040231,-535.97,0.00013698,2]
[384497125,1757445040240,-480.0,0.00013698,2]
[384497126,1757445040249,-3438.16,0.00013698,2]
[384497128,1757445040258,-480.0,0.00013698,2]
[384497129,1757445040267,-1261.89,0.00013698,2]
[384497130,1757445040277,-2314.67,0.00013698,2]
[384497131,1757445040286,-480.0,0.00013698,2]
[384497132,1757445040295,-1010.74,0.00013698,2]
[384497133,1757445040304,-386.12426946,0.00013698,2]
[384497134,1757445040313,-1005.16136,0.00013699,2]
[384497135,1757445040323,-10578.81621497,0.00013749,2]
[384497136,1757445040332,-160.0,0.00013806,2]
[384497137,1757445040342,-160.0,0.00013806,2]
[384497138,1757445040352,-530.79566296,0.00013806,2]
[384497139,1757445040361,-417.15472785,0.00013806,2]
[384497140,1757445040373,-160.0,0.00013806,2]
[384497141,1757445040382,-160.0,0.00013806,2]
[384497142,1757445040391,-160.0,0.00013806,2]
[384497143,1757445040401,-217.65034598,0.00013806,2]
[384497144,1757445040410,-846.80158213,0.00013806,2]
[384497145,1757445040420,-233.05759179,0.00013806,2]
[384497146,1757445040429,-160.0,0.00013806,2]
[384497147,1757445040438,-203.28455737,0.00013806,2]
[384497148,1757445040448,-239.1584636,0.00013832,2]
[384497149,1757445040457,-473.41894512,0.00013872,2]
[384497150,1757445040466,-168.0,0.00013897,2]
[384497151,1757445040475,-151.0,0.000139,2]
[384497152,1757445040485,-150.0,0.00013957,2]
[384497153,1757445040494,-192.038,0.00013968,2]
[384497154,1757445040504,-300.0,0.00013971,2]
[384497155,1757445040513,-300.0,0.00013971,2]
[384497156,1757445040523,-300.0,0.00013971,2]
[384497157,1757445040532,-300.0,0.00013971,2]
[384497158,1757445040541,-300.0,0.00013971,2]
[384497159,1757445040551,-300.0,0.00013971,2]
[384497160,1757445040561,-300.0,0.00013971,2]
[384497161,1757445040571,-300.0,0.00013971,2]
[384497162,1757445040580,-300.0,0.00013971,2]
[384497163,1757445040589,-300.0,0.00013971,2]
[384497164,1757445040599,-300.0,0.00013971,2]
[384497165,1757445040609,-300.0,0.00013971,2]
[384497166,1757445040618,-300.0,0.00013971,2]
[384497167,1757445040627,-300.0,0.00013971,2]
[384497168,1757445040636,-300.0,0.00013971,2]
[384497169,1757445040646,-600.0,0.00013971,2]
[384497170,1757445040655,-480.0,0.00013972,2]
[384497171,1757445040664,-480.0,0.00013972,2]
[384497172,1757445040674,-480.0,0.00013972,2]
[384497173,1757445040683,-480.0,0.00013972,2]
[384497174,1757445040692,-513.51,0.00013972,2]
[384497175,1757445040702,-480.0,0.00013972,2]
[384497176,1757445040711,-546.32457401,0.00013972,2]
[384497177,1757445040720,-480.0,0.00013972,2]
[384497178,1757445040730,-775.93,0.00013972,2]
[384497179,1757445040739,-533.97,0.00013972,2]
[384497180,1757445040749,-506.78,0.00013972,2]
[384497181,1757445040758,-610.31,0.00013972,2]
[384497182,1757445040768,-940.36,0.00013972,2]
[384497183,1757445040778,-480.0,0.00013972,2]
[384497184,1757445040787,-480.0,0.00013972,2]
[384497185,1757445040797,-1119.68,0.00013972,2]
[384497186,1757445040806,-501.82,0.00013972,2]
[384497187,1757445040815,-1000.0,0.00013972,2]
[384497188,1757445040825,-975.98,0.00013972,2]
[384497189,1757445040834,-691.07,0.00013972,2]
[384497190,1757445040844,-704.77,0.00013972,2]
[384497191,1757445040854,-480.0,0.00013972,2]
[384497192,1757445040864,-698.9,0.00013972,2]
[384497193,1757445040874,-480.0,0.00013972,2]
[384497194,1757445040884,-584.86,0.00013972,2]
[384497195,1757445040894,-498.74,0.00013972,2]
[384497196,1757445040903,-480.0,0.00013972,2]
[384497197,1757445040912,-498.37,0.00013972,2]
[384497198,1757445040922,-480.0,0.00013972,2]
[384497199,1757445040931,-480.0,0.00013972,2]
[384497200,1757445040941,-480.0,0.00013972,2]
[384497201,1757445040950,-1786.28,0.00013972,2]
[384497202,1757445040959,-480.0,0.00013972,2]
[384497203,1757445040968,-480.0,0.00013972,2]
[384497204,1757445040978,-480.0,0.00013972,2]
[384497205,1757445040988,-480.0,0.00013972,2]
[384497206,1757445040997,-480.0,0.00013972,2]
[384497207,1757445041007,-480.0,0.00013972,2]
[384497208,1757445041016,-575.34,0.00013972,2]
[384497209,1757445041026,-525.03,0.00013972,2]
[384497210,1757445041036,-595.48,0.00013972,2]
[384497211,1757445041045,-480.0,0.00013972,2]
[384497212,1757445041055,-163.145031,0.00013972,2]
[384497213,1757445041064,-151.0,0.00013972,2]
[384497215,1757445041075,-480.0,0.00013972,2]
[384497217,1757445041085,-480.0,0.00013972,2]
[384497219,1757445041094,-480.0,0.00013972,2]
[384497221,1757445041104,-480.0,0.00013972,2]
[384497223,1757445041114,-887.0,0.00013972,2]
[384497225,1757445041123,-480.0,0.00013972,2]
[384497227,1757445041132,-480.0,0.00013972,2]
[384497229,1757445041141,-480.0,0.00013972,2]
[384497231,1757445041151,-4442.44,0.00013972,2]
[384497233,1757445041160,-1125.33,0.00013972,2]
[384497235,1757445041169,-299.51458903,0.00013972,2]
[384497237,1757445041178,-999.77,0.00013972,2]
[384497239,1757445041188,-526.55,0.00013972,2]
[384497240,1757445041202,-480.0,0.00013972,2]
[384497242,1757445041211,-480.0,0.00013972,2]
[384497244,1757445041220,-822.58,0.00013972,2]
[384497246,1757445041229,-151.0,0.00013972,2]
[384497248,1757445041238,-716.82,0.00013972,2]
[384497250,1757445041248,-1435.07,0.00013972,2]
[384497252,1757445041257,-153.708351,0.00013972,2]
[384497254,1757445041266,-480.0,0.00013972,2]
[384497256,1757445041276,-480.0,0.00013972,2]
[384497258,1757445041287,-151.0,0.00013972,2]
[384497260,1757445041296,-501.71,0.00013972,2]
[384497262,1757445041305,-480.0,0.00013972,2]
[384497264,1757445041314,-769.65,0.00013972,2]
[384497266,1757445041323,-480.0,0.00013972,2]
[384497267,1757445041332,-480.0,0.00013972,2]
[384497269,1757445041341,-3466.96,0.00013972,2]
[384497271,1757445041351,-1757.78,0.00013972,2]
[384497273,1757445041360,-480.0,0.00013972,2]
[384497275,1757445041370,-480.0,0.00013972,2]
[384497277,1757445041379,-480.0,0.00013972,2]
[384497279,1757445041388,-151.0,0.00013972,2]
[384497281,1757445041398,-480.0,0.00013972,2]
[384497283,1757445041407,-151.0,0.00013972,2]
[384497285,1757445041417,-480.0,0.00013972,2]
[384497287,1757445041426,-480.0,0.00013972,2]
[384497289,1757445041436,-480.0,0.00013972,2]
[384497291,1757445041445,-151.0,0.00013972,2]
[384497293,1757445041455,-294.428008,0.00013972,2]
[384497295,1757445041465,-753.95,0.00013972,2]
[384497297,1757445041475,-606.59,0.00013972,2]
[384497299,1757445041485,-730.46,0.00013972,2]
[384497301,1757445041494,-151.0,0.00013972,2]
[384497302,1757445041503,-480.0,0.00013972,2]
[384497304,1757445041513,-480.0,0.00013972,2]
[384497306,1757445041522,-2975.42,0.00013972,2]
[384497308,1757445041532,-151.0,0.00013972,2]
[384497310,1757445041541,-14657.63595428,0.00013972,2]
[384497312,1757445041557,-11274.35404572,0.00013972,2]
[384497314,1757445041566,-151.0,0.00013972,2]
[384497316,1757445041575,-151.0,0.00013972,2]
[384497317,1757445041584,-783.94,0.00013972,2]
[384497318,1757445041593,-151.0,0.00013972,2]
[384497319,1757445041602,-718.37,0.00013972,2]
[384497320,1757445041611,-2636.56,0.00013972,2]
[384497321,1757445041620,-151.0,0.00013972,2]
[384497322,1757445041630,-2939.26,0.00013972,2]
[384497323,1757445041638,-1108.26,0.00013972,2]
[384497324,1757445041647,-1242.42,0.00013972,2]
[384497325,1757445041656,-151.0,0.00013972,2]
[384497326,1757445041666,-151.0,0.00013972,2]
[384497327,1757445041675,-246.728576,0.00013972,2]
[384497328,1757445041684,-502.96,0.00013972,2]
[384497329,1757445041693,-151.0,0.00013972,2]
[384497330,1757445041702,-671.47,0.00013972,2]
[384497331,1757445041711,-480.0,0.00013972,2]
[384497332,1757445041721,-161.177037,0.00013972,2]
[384497333,1757445041730,-151.0,0.00013972,2]
[384497334,1757445041739,-161.177037,0.00013972,2]
[384497335,1757445041750,-161.177037,0.00013972,2]
[384497344,1757445041760,-161.177037,0.00013972,2]
[384497348,1757445041901,-480.0,0.00013972,2]
[384497350,1757445041911,-566.11,0.00013972,2]
[384497352,1757445041921,-151.995912,0.00013972,2]
[384497354,1757445041930,-2112.24,0.00013972,2]
[384497356,1757445041939,-878.28,0.00013972,2]
[384497358,1757445041948,-480.0,0.00013972,2]
[384497360,1757445041958,-1959.85,0.00013972,2]
[384497362,1757445041967,-461.19984629,0.00013972,2]
[384497364,1757445041976,-790.79,0.00013972,2]
[384497366,1757445041985,-1323.65,0.00013972,2]
[384497368,1757445041994,-641.97,0.00013972,2]
[384497370,1757445042005,-809.7,0.00013972,2]
[384497372,1757445042015,-1085.91,0.00013972,2]
[384497374,1757445042025,-519.61,0.00013972,2]
[384497376,1757445042035,-483.14,0.00013972,2]
[384497378,1757445042045,-557.92,0.00013972,2]
[384497380,1757445042054,-1159.74,0.00013972,2]
[384497382,1757445042064,-480.0,0.00013972,2]
[384497384,1757445042073,-480.0,0.00013972,2]
[384497386,1757445042083,-170.37835662,0.00013972,2]
[384497388,1757445042092,-2950.96,0.00013972,2]
[384497390,1757445042102,-480.0,0.00013972,2]
[384497392,1757445042111,-151.09019728,0.00013972,2]
[384497395,1757445042123,-1924.42980272,0.00013972,2]
[384497397,1757445042132,-480.0,0.00013972,2]
[384497399,1757445042141,-979.21,0.00013972,2]
[384497401,1757445042150,-151.0,0.00013972,2]
[384497403,1757445042159,-480.0,0.00013972,2]
[384497405,1757445042168,-279.5394105,0.00013972,2]
[384497407,1757445042180,-538.2905895,0.00013972,2]
[384497409,1757445042188,-480.0,0.00013972,2]
[384497411,1757445042201,-480.0,0.00013972,2]
[384497413,1757445042210,-726.16,0.00013972,2]
[384497415,1757445042219,-587.07,0.00013972,2]
[384497417,1757445042228,-480.0,0.00013972,2]
[384497419,1757445042238,-480.0,0.00013972,2]
[384497421,1757445042247,-480.0,0.00013972,2]
[384497423,1757445042256,-335.10004,0.00013972,2]
[384497425,1757445042265,-335.10004,0.00013972,2]
[384497427,1757445042274,-854.32,0.00013972,2]
[384497429,1757445042283,-151.0,0.00013972,2]
[384497431,1757445042292,-335.10004,0.00013972,2]
[384497433,1757445042301,-335.10004,0.00013972,2]
[384497435,1757445042310,-661.4,0.00013972,2]
[384497437,1757445042320,-549.31,0.00013972,2]
[384497438,1757445042328,-151.0,0.00013972,2]
[384497441,1757445042338,-480.0,0.00013972,2]
[384497442,1757445042347,-480.0,0.00013972,2]
[384497444,1757445042357,-2507.72735726,0.00013972,2]
[384497446,1757445042368,-4128.12962731,0.00013972,2]
[384497449,1757445042379,-1950.00000928,0.00013972,2]
[384497451,1757445042390,-455.18249544,0.00013972,2]
[384497453,1757445042402,-282.97051071,0.00013972,2]
[384497455,1757445042411,-1623.49,0.00013972,2]
[384497457,1757445042420,-480.0,0.00013972,2]
[384497459,1757445042429,-611.98218528,0.00013972,2]
[384497461,1757445042441,-652.66070144,0.00013972,2]
[384497471,1757445042526,-594.4003059,0.00013972,2]
[384497474,1757445042537,-1291.65754788,0.00013972,2]
[384497477,1757445042559,-2010.5492595,0.00013972,2]
[384497479,1757445042568,-535.97,0.00013972,2]
[384497481,1757445042576,-480.0,0.00013972,2]
[384497483,1757445042586,-3438.16,0.00013972,2]
[384497485,1757445042596,-480.0,0.00013972,2]
[384497487,1757445042605,-151.0,0.00013972,2]
[384497489,1757445042614,-1261.89,0.00013972,2]
[384497491,1757445042623,-2314.67,0.00013972,2]
[384497493,1757445042632,-1010.74,0.00013972,2]
[384497495,1757445042641,-239.648101,0.00013972,2]
[384497497,1757445042650,-239.648101,0.00013972,2]
[384497499,1757445042660,-239.648101,0.00013972,2]
[384497501,1757445042669,-500.0,0.00013973,2]
[384497503,1757445042679,-503.28828913,0.00013973,2]
[384497505,1757445042688,-162.72247615,0.00013973,2]
[384497507,1757445042697,-500.0,0.00013973,2]
[384497509,1757445042708,-500.0,0.00013973,2]
[384497511,1757445042718,-520.91065189,0.00013973,2]
[384497513,1757445042727,-500.0,0.00013973,2]
[384497515,1757445042736,-500.0,0.00013973,2]
[384497517,1757445042745,-503.91850416,0.00013973,2]
[384497519,1757445042754,-236.22399979,0.00013973,2]
[384497521,1757445042764,-184.96309044,0.00013973,2]
[384497523,1757445042773,-500.0,0.00013973,2]
[384497525,1757445042782,-500.0,0.00013973,2]
[384497527,1757445042791,-500.0,0.00013973,2]
[384497529,1757445042800,-500.0,0.00013973,2]
[384497531,1757445042810,-500.0,0.00013973,2]
[384497533,1757445042819,-500.0,0.00013973,2]
[384497535,1757445042828,-500.0,0.00013973,2]
[384497537,1757445042837,-500.0,0.00013973,2]
[384497539,1757445042847,-500.0,0.00013973,2]
[384497541,1757445042856,-500.0,0.00013973,2]
[384497543,1757445042865,-500.0,0.00013973,2]
[384497545,1757445042875,-500.0,0.00013973,2]
[384497547,1757445042885,-500.0,0.00013973,2]
[384497549,1757445042893,-500.0,0.00013973,2]
[384497551,1757445042903,-275.4374358,0.00013973,2]
[384497553,1757445042912,-255.54918132,0.00013973,2]
[384497555,1757445042922,-351.33990713,0.00013973,2]
[384497557,1757445042931,-500.0,0.00013973,2]
[384497559,1757445042940,-500.0,0.00013973,2]
[384497561,1757445042950,-191.46324688,0.00013973,2]
[384497563,1757445042959,-501.27550109,0.00013973,2]
[384497565,1757445042968,-151.0,0.00013973,2]
[384497567,1757445042977,-151.0,0.00013973,2]
[384497569,1757445042987,-151.0,0.00013973,2]
[384497571,1757445042996,-151.0,0.00013973,2]
[384497573,1757445043006,-151.0,0.00013973,2]
[384497575,1757445043016,-151.0,0.00013973,2]
[384497577,1757445043026,-151.0,0.00013973,2]
[384497579,1757445043035,-151.0,0.00013973,2]
[384497581,1757445043044,-151.0,0.00013973,2]
[384497583,1757445043054,-151.0,0.00013973,2]
[384497585,1757445043063,-151.0,0.00013973,2]
[384497587,1757445043072,-151.0,0.00013973,2]
[384497589,1757445043082,-150.0,0.00013986,2]
[384497591,1757445043091,-976.0,0.00013986,2]
[384497593,1757445043101,-705.388,0.00013986,2]
[384497595,1757445043110,-2154.0,0.00013986,2]
[384497597,1757445043119,-34204.59280734,0.0001399,2]
[384497599,1757445043134,-151.0,0.0001399,2]
[384497601,1757445043143,-275.746057,0.0001399,2]
[384497603,1757445043153,-151.0,0.0001399,2]
[384497605,1757445043162,-151.0,0.0001399,2]
[384497607,1757445043171,-151.0,0.0001399,2]
[384497609,1757445043181,-151.0,0.00014,2]
[384497611,1757445043190,-3000.0,0.0001404,2]
[384497613,1757445043203,-203.14,0.00014099,2]
[384497615,1757445043212,-151.0,0.000141,2]
[384497617,1757445043221,-151.0,0.000141,2]
[384497619,1757445043231,-500.373,0.00014199,2]
[384497621,1757445043240,-151.0,0.000142,2]
[384497623,1757445043250,-151.0,0.000142,2]
[384497625,1757445043259,-480.0,0.00014246,2]
[384497627,1757445043268,-480.0,0.00014246,2]
[384497629,1757445043278,-480.0,0.00014246,2]
[384497631,1757445043288,-480.0,0.00014246,2]
[384497633,1757445043297,-513.51,0.00014246,2]
[384497635,1757445043306,-480.0,0.00014246,2]
[384497637,1757445043315,-480.0,0.00014246,2]
[384497639,1757445043325,-775.93,0.00014246,2]
[384497641,1757445043334,-506.78,0.00014246,2]
[384497643,1757445043343,-610.31,0.00014246,2]
[384497645,1757445043353,-940.36,0.00014246,2]
[384497647,1757445043362,-151.0,0.00014246,2]
[384497649,1757445043372,-480.0,0.00014246,2]
[384497651,1757445043381,-480.0,0.00014246,2]
[384497653,1757445043390,-1119.68,0.00014246,2]
[384497655,1757445043399,-501.82,0.00014246,2]
[384497657,1757445043409,-151.0,0.00014246,2]
[384497659,1757445043418,-691.07,0.00014246,2]
[384497661,1757445043427,-704.77,0.00014246,2]
[384497663,1757445043436,-357.59626634,0.00014246,2]
[384497665,1757445043446,-698.9,0.00014246,2]
[384497667,1757445043455,-480.0,0.00014246,2]
[384497669,1757445043465,-584.86,0.00014246,2]
[384497671,1757445043475,-498.74,0.00014246,2]
[384497673,1757445043484,-480.0,0.00014246,2]
[384497675,1757445043493,-498.37,0.00014246,2]
[384497677,1757445043502,-153.497539,0.00014246,2]
[384497679,1757445043512,-480.0,0.00014246,2]
[384497681,1757445043521,-1786.28,0.00014246,2]
[384497683,1757445043530,-480.0,0.00014246,2]
[384497685,1757445043539,-480.0,0.00014246,2]
[384497687,1757445043548,-151.0,0.00014246,2]
[384497689,1757445043557,-480.0,0.00014246,2]
[384497691,1757445043567,-480.0,0.00014246,2]
[384497693,1757445043576,-151.0,0.00014246,2]
[384497695,1757445043586,-575.34,0.00014246,2]
[384497697,1757445043595,-206.246266,0.00014246,2]
[384497699,1757445043604,-525.03,0.00014246,2]
[384497701,1757445043613,-595.48,0.00014246,2]
[384497703,1757445043622,-480.0,0.00014246,2]
[384497705,1757445043631,-480.0,0.00014246,2]
[384497707,1757445043641,-480.0,0.00014246,2]
[384497709,1757445043655,-480.0,0.00014246,2]
[384497711,1757445043664,-463.63441625,0.00014246,2]
[384497713,1757445043673,-887.0,0.00014246,2]
[384497715,1757445043683,-480.0,0.00014246,2]
[384497717,1757445043692,-480.0,0.00014246,2]
[384497719,1757445043701,-480.0,0.00014246,2]
[384497721,1757445043710,-4442.44,0.00014246,2]
[384497723,1757445043719,-1125.33,0.00014246,2]
[384497725,1757445043729,-999.77,0.00014246,2]
[384497727,1757445043738,-526.55,0.00014246,2]
[384497729,1757445043748,-480.0,0.00014246,2]
[384497731,1757445043757,-822.58,0.00014246,2]
[384497733,1757445043767,-716.82,0.00014246,2]
[384497735,1757445043776,-1435.07,0.00014246,2]
[384497737,1757445043785,-480.0,0.00014246,2]
[384497739,1757445043795,-480.0,0.00014246,2]
[384497741,1757445043804,-151.0,0.00014246,2]
[384497743,1757445043813,-501.71,0.00014246,2]
[384497745,1757445043822,-577.77840228,0.00014246,2]
[384497747,1757445043832,-769.65,0.00014246,2]
[384497749,1757445043841,-480.0,0.00014246,2]
[384497751,1757445043850,-480.0,0.00014246,2]
[384497753,1757445043860,-3466.96,0.00014246,2]
[384497755,1757445043869,-1757.78,0.00014246,2]
[384497757,1757445043878,-480.0,0.00014246,2]
[384497759,1757445043887,-480.0,0.00014246,2]
[384497761,1757445043897,-480.0,0.00014246,2]
[384497763,1757445043906,-480.0,0.00014246,2]
[384497765,1757445043915,-151.0,0.00014246,2]
[384497767,1757445043925,-480.0,0.00014246,2]
[384497769,1757445043934,-480.0,0.00014246,2]
[384497771,1757445043943,-480.0,0.00014246,2]
[384497773,1757445043953,-151.0,0.00014246,2]
[384497775,1757445043964,-753.95,0.00014246,2]
[384497777,1757445043973,-606.59,0.00014246,2]
[384497779,1757445043982,-730.46,0.00014246,2]
[384497781,1757445043992,-151.0,0.00014246,2]
[384497783,1757445044001,-480.0,0.00014246,2]
[384497785,1757445044010,-480.0,0.00014246,2]
[384497787,1757445044019,-2975.42,0.00014246,2]
[384497789,1757445044029,-151.0,0.00014246,2]